[Event "Early-Titled-Tuesday-Blitz-June-18-2024"]
[Site "Chess.com"]
[Date "2024.06.18"]
[Round "5"]
[White "Lestofante90"]
[Black "jk13"]
[Result "1-0"]
[WhiteElo "2971"]
[BlackElo "2692"]
[TimeControl "180+1"]
[EndTime "8:58:25 PDT"]
[Termination "Lestofante90 won by resignation"]

1. d4 {[%clk 0:02:59.7]} 1... Nf6 {[%clk 0:02:59.2]} 2. c4 {[%clk 0:02:59.1]}
2... e6 {[%clk 0:02:59.8]} 3. Nf3 {[%clk 0:02:58.1]} 3... Bb4+ {[%clk
0:02:59.9]} 4. Bd2 {[%clk 0:02:57.8]} 4... Bxd2+ {[%clk 0:03:00]} 5. Qxd2 {[%clk
0:02:57.9]} 5... O-O {[%clk 0:03:00.9]} 6. Nc3 {[%clk 0:02:56.7]} 6... d5 {[%clk
0:03:01.8]} 7. e3 {[%clk 0:02:52.3]} 7... Qe7 {[%clk 0:03:01.6]} 8. cxd5 {[%clk
0:02:44]} 8... exd5 {[%clk 0:03:02.5]} 9. Bd3 {[%clk 0:02:43.6]} 9... Nc6 {[%clk
0:03:02.4]} 10. a3 {[%clk 0:02:23.4]} 10... Bg4 {[%clk 0:02:59.9]} 11. O-O
{[%clk 0:02:17.8]} 11... Rad8 {[%clk 0:02:54.4]} 12. Rac1 {[%clk 0:02:15.2]}
12... Ne4 {[%clk 0:02:52.5]} 13. Qc2 {[%clk 0:02:10.9]} 13... Rfe8 {[%clk
0:02:42.7]} 14. Kh1 {[%clk 0:01:50.4]} 14... Rd6 {[%clk 0:02:31.3]} 15. Ng1
{[%clk 0:01:02.2]} 15... Bh5 {[%clk 0:01:34.2]} 16. Nh3 {[%clk 0:00:52.1]} 16...
Nxc3 {[%clk 0:01:13.5]} 17. bxc3 {[%clk 0:00:51.9]} 17... Bg6 {[%clk 0:01:12.3]}
18. Nf4 {[%clk 0:00:50.7]} 18... Bxd3 {[%clk 0:01:11.8]} 19. Qxd3 {[%clk
0:00:50.6]} 19... Na5 {[%clk 0:01:10.6]} 20. Qb5 {[%clk 0:00:47.1]} 20... b6
{[%clk 0:00:57.5]} 21. Nxd5 {[%clk 0:00:47]} 21... Qd8 {[%clk 0:00:47.2]} 22.
Nf4 {[%clk 0:00:34.7]} 22... c6 {[%clk 0:00:41.7]} 23. Qe2 {[%clk 0:00:32.7]}
23... b5 {[%clk 0:00:42.1]} 24. e4 {[%clk 0:00:28.4]} 24... Nc4 {[%clk
0:00:39.9]} 25. e5 {[%clk 0:00:28.6]} 25... Rh6 {[%clk 0:00:36.4]} 26. Rcd1
{[%clk 0:00:23.9]} 26... Qh4 {[%clk 0:00:32.8]} 27. Nh3 {[%clk 0:00:23.7]} 27...
Nxa3 {[%clk 0:00:31.9]} 28. Qf3 {[%clk 0:00:18]} 28... Nc4 {[%clk 0:00:29.7]}
29. Rfe1 {[%clk 0:00:17.7]} 29... a5 {[%clk 0:00:28.1]} 30. d5 {[%clk
0:00:13.6]} 30... cxd5 {[%clk 0:00:23.1]} 31. Rxd5 {[%clk 0:00:14.5]} 31... Rb6
{[%clk 0:00:21.3]} 32. Rd4 {[%clk 0:00:12.8]} 32... Qe7 {[%clk 0:00:21.1]} 33.
Nf4 {[%clk 0:00:12.2]} 33... Nxe5 {[%clk 0:00:20.1]} 34. Qg3 {[%clk 0:00:09]}
34... Qf8 {[%clk 0:00:11.8]} 35. Rde4 {[%clk 0:00:06.7]} 35... f6 {[%clk
0:00:09.9]} 36. Nh5 {[%clk 0:00:05.8]} 36... Rd8 {[%clk 0:00:06.8]} 37. f4
{[%clk 0:00:06]} 37... Ng6 {[%clk 0:00:07.1]} 38. h3 {[%clk 0:00:05.8]} 38...
Rbd6 {[%clk 0:00:07.1]} 39. Qe3 {[%clk 0:00:05.7]} 39... Rd3 {[%clk 0:00:07.6]}
40. Qb6 {[%clk 0:00:05.8]} 40... Nh4 {[%clk 0:00:07.7]} 41. Qxb5 {[%clk
0:00:03.9]} 41... Kh8 {[%clk 0:00:06.4]} 42. Re8 {[%clk 0:00:04.1]} 42... Ng6
{[%clk 0:00:04.6]} 43. Rxf8+ {[%clk 0:00:04]} 43... Rxf8 {[%clk 0:00:05.5]} 44.
Qxd3 {[%clk 0:00:03.8]} 44... Rb8 {[%clk 0:00:05.5]} 45. Qb5 {[%clk 0:00:03.1]}
45... a4 {[%clk 0:00:06.4]} 46. Qxb8+ {[%clk 0:00:03.2]} 1-0

[Event "Early-Titled-Tuesday-Blitz-June-18-2024"]
[Site "Chess.com"]
[Date "2024.06.18"]
[Round "5"]
[White "kyuotbi"]
[Black "Predatoru"]
[Result "0-1"]
[WhiteElo "2323"]
[BlackElo "2566"]
[TimeControl "180+1"]
[EndTime "8:58:25 PDT"]
[Termination "Predatoru won by checkmate"]

1. e4 {[%clk 0:03:00.9]} 1... c5 {[%clk 0:02:57.8]} 2. Nf3 {[%clk 0:02:59.8]}
2... d6 {[%clk 0:02:58.4]} 3. d4 {[%clk 0:03:00]} 3... cxd4 {[%clk 0:02:59.3]}
4. Nxd4 {[%clk 0:02:59.8]} 4... Nf6 {[%clk 0:02:59.9]} 5. Nc3 {[%clk 0:03:00.4]}
5... a6 {[%clk 0:03:00.6]} 6. Bg5 {[%clk 0:03:00.8]} 6... Nbd7 {[%clk 0:02:59]}
7. Bc4 {[%clk 0:02:59.3]} 7... Qb6 {[%clk 0:02:54.3]} 8. O-O {[%clk 0:02:52.9]}
8... e6 {[%clk 0:02:47.2]} 9. Qd2 {[%clk 0:02:37]} 9... h6 {[%clk 0:02:39.9]}
10. Be3 {[%clk 0:02:34.4]} 10... Qc7 {[%clk 0:02:39.5]} 11. Bxe6 {[%clk
0:01:50.8]} 11... fxe6 {[%clk 0:02:25.7]} 12. Nxe6 {[%clk 0:01:49.6]} 12... Qc4
{[%clk 0:02:25.6]} 13. Nd5 {[%clk 0:01:31.7]} 13... Nxd5 {[%clk 0:02:23.3]} 14.
exd5 {[%clk 0:01:30.2]} 14... Nf6 {[%clk 0:02:21]} 15. Bb6 {[%clk 0:01:26.2]}
15... Bxe6 {[%clk 0:02:15.2]} 16. dxe6 {[%clk 0:01:25.7]} 16... Be7 {[%clk
0:02:15.7]} 17. b3 {[%clk 0:01:13.5]} 17... Qd5 {[%clk 0:02:10.4]} 18. Qe3
{[%clk 0:01:09.5]} 18... O-O {[%clk 0:02:08.5]} 19. Rad1 {[%clk 0:01:04.5]}
19... Qe4 {[%clk 0:02:05.8]} 20. Qxe4 {[%clk 0:00:58.1]} 20... Nxe4 {[%clk
0:02:06.7]} 21. c4 {[%clk 0:00:56.3]} 21... Rf5 {[%clk 0:01:36.4]} 22. Rfe1
{[%clk 0:00:51.2]} 22... Nc5 {[%clk 0:01:34.2]} 23. Bc7 {[%clk 0:00:38.3]} 23...
Rf6 {[%clk 0:01:18.3]} 24. Bxd6 {[%clk 0:00:36.6]} 24... Bxd6 {[%clk 0:01:19.2]}
25. Rxd6 {[%clk 0:00:35.7]} 25... Re8 {[%clk 0:01:19.8]} 26. g3 {[%clk
0:00:29.7]} 26... Rfxe6 {[%clk 0:01:15]} 27. Rexe6 {[%clk 0:00:28.5]} 27... Rxe6
{[%clk 0:01:15.4]} 28. Rd8+ {[%clk 0:00:28.7]} 28... Kf7 {[%clk 0:01:13.9]} 29.
Rd5 {[%clk 0:00:29.2]} 29... Ne4 {[%clk 0:01:11.4]} 30. Kg2 {[%clk 0:00:27.2]}
30... Ke7 {[%clk 0:01:01.9]} 31. a4 {[%clk 0:00:24.1]} 31... Nf6 {[%clk
0:00:52.7]} 32. Rc5 {[%clk 0:00:23.1]} 32... Kd7 {[%clk 0:00:49.8]} 33. a5
{[%clk 0:00:21.1]} 33... Re2 {[%clk 0:00:43.2]} 34. Kf3 {[%clk 0:00:20]} 34...
Rxf2+ {[%clk 0:00:43.1]} 35. Ke3 {[%clk 0:00:19.9]} 35... Rxh2 {[%clk
0:00:41.8]} 36. Rf5 {[%clk 0:00:17.6]} 36... Rb2 {[%clk 0:00:40.8]} 37. Kd4
{[%clk 0:00:17.7]} 37... Rxb3 {[%clk 0:00:40.2]} 38. Kc5 {[%clk 0:00:15.3]}
38... Rxg3 {[%clk 0:00:37.4]} 39. Kb6 {[%clk 0:00:14.8]} 39... Rb3+ {[%clk
0:00:37.4]} 40. Ka7 {[%clk 0:00:14.9]} 40... Ke6 {[%clk 0:00:35.4]} 41. Rc5
{[%clk 0:00:14.4]} 41... g5 {[%clk 0:00:28.2]} 42. Rc7 {[%clk 0:00:14.2]} 42...
g4 {[%clk 0:00:28.5]} 43. c5 {[%clk 0:00:12.4]} 43... g3 {[%clk 0:00:27.9]} 44.
Rg7 {[%clk 0:00:12]} 44... h5 {[%clk 0:00:25.9]} 45. c6 {[%clk 0:00:11.9]} 45...
bxc6 {[%clk 0:00:25.6]} 46. Kxa6 {[%clk 0:00:12.2]} 46... h4 {[%clk 0:00:26]}
47. Ka7 {[%clk 0:00:12.1]} 47... h3 {[%clk 0:00:26.2]} 48. a6 {[%clk 0:00:12.7]}
48... h2 {[%clk 0:00:26.7]} 49. Ka8 {[%clk 0:00:10.4]} 49... h1=Q {[%clk
0:00:26.4]} 50. a7 {[%clk 0:00:10.7]} 50... Qh8+ {[%clk 0:00:26]} 51. Rg8 {[%clk
0:00:10.1]} 51... Qxg8# {[%clk 0:00:26.2]} 0-1

[Event "Early-Titled-Tuesday-Blitz-June-18-2024"]
[Site "Chess.com"]
[Date "2024.06.18"]
[Round "5"]
[White "Mikhail_Bryakin"]
[Black "Sargsyan_Shant"]
[Result "0-1"]
[WhiteElo "2763"]
[BlackElo "2971"]
[TimeControl "180+1"]
[EndTime "8:58:26 PDT"]
[Termination "Sargsyan_Shant won on time"]

1. Nf3 {[%clk 0:03:00.9]} 1... g6 {[%clk 0:02:59.2]} 2. d4 {[%clk 0:03:00]} 2...
Nf6 {[%clk 0:02:59.6]} 3. g3 {[%clk 0:03:00.1]} 3... Bg7 {[%clk 0:02:59.8]} 4.
Bg2 {[%clk 0:03:00.7]} 4... O-O {[%clk 0:03:00.2]} 5. O-O {[%clk 0:03:01.1]}
5... d6 {[%clk 0:03:00.9]} 6. b3 {[%clk 0:03:01.4]} 6... Ne4 {[%clk 0:02:58.9]}
7. Bb2 {[%clk 0:03:00.5]} 7... c5 {[%clk 0:02:59.4]} 8. c4 {[%clk 0:02:43.6]}
8... Nc6 {[%clk 0:02:51.5]} 9. Nbd2 {[%clk 0:02:38.4]} 9... Bf5 {[%clk
0:02:40.4]} 10. Nxe4 {[%clk 0:02:17.4]} 10... Bxe4 {[%clk 0:02:35.8]} 11. Qd2
{[%clk 0:02:17.7]} 11... Bxf3 {[%clk 0:02:20.3]} 12. Bxf3 {[%clk 0:02:16.3]}
12... Nxd4 {[%clk 0:02:18.8]} 13. Bxb7 {[%clk 0:02:14.1]} 13... Rb8 {[%clk
0:02:09.2]} 14. Bg2 {[%clk 0:02:11.4]} 14... a5 {[%clk 0:02:06.8]} 15. e3 {[%clk
0:02:06.4]} 15... Nf5 {[%clk 0:02:00.8]} 16. Bxg7 {[%clk 0:02:02.8]} 16... Nxg7
{[%clk 0:02:01.7]} 17. Rab1 {[%clk 0:01:56.8]} 17... h5 {[%clk 0:02:01.1]} 18.
h4 {[%clk 0:01:53.7]} 18... Qb6 {[%clk 0:02:01.1]} 19. Rb2 {[%clk 0:01:50.7]}
19... Qb4 {[%clk 0:02:00.4]} 20. Qxb4 {[%clk 0:01:43.9]} 20... Rxb4 {[%clk
0:01:54.7]} 21. a3 {[%clk 0:01:42.3]} 21... Rb6 {[%clk 0:01:54.3]} 22. Rfb1
{[%clk 0:01:36]} 22... Rfb8 {[%clk 0:01:54.7]} 23. Be4 {[%clk 0:01:30.1]} 23...
Ne8 {[%clk 0:01:52.7]} 24. Kf1 {[%clk 0:01:28.7]} 24... Nf6 {[%clk 0:01:53]} 25.
Bd3 {[%clk 0:01:28.6]} 25... e6 {[%clk 0:01:52.5]} 26. Ke2 {[%clk 0:01:28.2]}
26... Ng4 {[%clk 0:01:50.8]} 27. Bc2 {[%clk 0:01:08.1]} 27... Ne5 {[%clk
0:01:46.9]} 28. Bd3 {[%clk 0:01:07.4]} 28... d5 {[%clk 0:01:41]} 29. cxd5 {[%clk
0:00:54.3]} 29... exd5 {[%clk 0:01:41.9]} 30. f4 {[%clk 0:00:24]} 30... Ng4
{[%clk 0:01:31.6]} 31. Kf3 {[%clk 0:00:17.9]} 31... c4 {[%clk 0:01:30.4]} 32.
Bc2 {[%clk 0:00:18.3]} 32... Re6 {[%clk 0:01:28.8]} 33. Re1 {[%clk 0:00:18.3]}
33... Rbe8 {[%clk 0:01:27.2]} 34. e4 {[%clk 0:00:17.5]} 34... c3 {[%clk
0:01:02.6]} 35. Rbb1 {[%clk 0:00:16.6]} 35... dxe4+ {[%clk 0:00:58.7]} 36. Rxe4
{[%clk 0:00:15.9]} 36... Rxe4 {[%clk 0:00:59.1]} 37. Bxe4 {[%clk 0:00:16]} 37...
f5 {[%clk 0:01:00]} 38. Bd5+ {[%clk 0:00:14.1]} 38... Kg7 {[%clk 0:01:00.3]} 39.
Bc4 {[%clk 0:00:07]} 39... Rd8 {[%clk 0:00:49.1]} 40. Rc1 {[%clk 0:00:03.3]}
40... Rd2 {[%clk 0:00:47.7]} 41. Be2 {[%clk 0:00:03.7]} 41... c2 {[%clk
0:00:44.8]} 42. b4 {[%clk 0:00:03.8]} 42... axb4 {[%clk 0:00:44.8]} 43. axb4
{[%clk 0:00:04.7]} 43... Kf6 {[%clk 0:00:45.2]} 44. b5 {[%clk 0:00:04.9]} 44...
Ke7 {[%clk 0:00:45.3]} 45. Ra1 {[%clk 0:00:01.8]} 45... Kd6 {[%clk 0:00:44.6]}
46. b6 {[%clk 0:00:02.2]} 46... Kc6 {[%clk 0:00:43.3]} 47. Rc1 {[%clk
0:00:01.3]} 47... Kxb6 {[%clk 0:00:42.7]} 48. Ra1 {[%clk 0:00:01.5]} 48... Kc5
{[%clk 0:00:42.6]} 49. Ra8 {[%clk 0:00:01.1]} 49... Kb4 {[%clk 0:00:39.9]} 50.
Rb8+ {[%clk 0:00:01.4]} 50... Kc3 {[%clk 0:00:39.6]} 51. Rc8+ {[%clk 0:00:01.9]}
51... Kb2 {[%clk 0:00:40.2]} 52. Rb8+ {[%clk 0:00:02.5]} 52... Kc1 {[%clk
0:00:40.8]} 53. Rc8 {[%clk 0:00:03.1]} 53... Rd4 {[%clk 0:00:40.3]} 0-1

[Event "Early-Titled-Tuesday-Blitz-June-18-2024"]
[Site "Chess.com"]
[Date "2024.06.18"]
[Round "5"]
[White "luckyswitchback"]
[Black "jens1102"]
[Result "1-0"]
[WhiteElo "2841"]
[BlackElo "2647"]
[TimeControl "180+1"]
[EndTime "8:58:26 PDT"]
[Termination "luckyswitchback won by checkmate"]

1. e4 {[%clk 0:03:00.9]} 1... e5 {[%clk 0:02:44.9]} 2. Nf3 {[%clk 0:03:00.6]}
2... Nc6 {[%clk 0:02:45.6]} 3. Bb5 {[%clk 0:03:00.2]} 3... f5 {[%clk 0:02:45.9]}
4. d3 {[%clk 0:02:59.1]} 4... fxe4 {[%clk 0:02:45.8]} 5. dxe4 {[%clk 0:02:59.3]}
5... Nf6 {[%clk 0:02:46.7]} 6. O-O {[%clk 0:02:59.6]} 6... d6 {[%clk 0:02:46.5]}
7. Bc4 {[%clk 0:02:59.5]} 7... Bg4 {[%clk 0:02:44.2]} 8. h3 {[%clk 0:02:56.1]}
8... Bxf3 {[%clk 0:02:43.5]} 9. Qxf3 {[%clk 0:02:55.4]} 9... Qd7 {[%clk
0:02:44.4]} 10. Nd2 {[%clk 0:02:30.3]} 10... O-O-O {[%clk 0:02:42.5]} 11. b4
{[%clk 0:02:30.2]} 11... Be7 {[%clk 0:02:36.8]} 12. Qb3 {[%clk 0:02:29.8]} 12...
Nd4 {[%clk 0:02:36.3]} 13. Qd3 {[%clk 0:02:23.6]} 13... Rdf8 {[%clk 0:02:22.6]}
14. Bb2 {[%clk 0:02:13.9]} 14... Nh5 {[%clk 0:02:20.8]} 15. Bxd4 {[%clk
0:02:00]} 15... Nf4 {[%clk 0:02:19.8]} 16. Qe3 {[%clk 0:01:41.7]} 16... exd4
{[%clk 0:02:18.4]} 17. Qxd4 {[%clk 0:01:42.6]} 17... Nxh3+ {[%clk 0:02:10.8]}
18. gxh3 {[%clk 0:01:36.7]} 18... Qxh3 {[%clk 0:02:11.7]} 19. Qd3 {[%clk
0:01:33]} 19... Qh6 {[%clk 0:02:02.8]} 20. Kg2 {[%clk 0:01:28.2]} 20... Rf6
{[%clk 0:01:57.9]} 21. Qh3+ {[%clk 0:01:28]} 21... Qxh3+ {[%clk 0:01:51.1]} 22.
Kxh3 {[%clk 0:01:28.9]} 22... Rhf8 {[%clk 0:01:49.8]} 23. f3 {[%clk 0:01:21.6]}
23... Kd7 {[%clk 0:01:43.9]} 24. Kg2 {[%clk 0:01:17]} 24... Rg6+ {[%clk
0:01:42.3]} 25. Kf2 {[%clk 0:01:13.1]} 25... Bh4+ {[%clk 0:01:42.3]} 26. Ke3
{[%clk 0:01:09.5]} 26... Rg2 {[%clk 0:01:41.2]} 27. Rad1 {[%clk 0:00:59.5]}
27... c6 {[%clk 0:01:40.6]} 28. Be2 {[%clk 0:00:51.8]} 28... g5 {[%clk
0:01:38.4]} 29. Kd3 {[%clk 0:00:50.5]} 29... h5 {[%clk 0:01:31.3]} 30. Nc4
{[%clk 0:00:49.7]} 30... b5 {[%clk 0:01:30.1]} 31. Ne3 {[%clk 0:00:49.8]} 31...
Rh2 {[%clk 0:01:30.1]} 32. Rh1 {[%clk 0:00:46.3]} 32... Bg3 {[%clk 0:01:27.6]}
33. Rxh2 {[%clk 0:00:45.6]} 33... Bxh2 {[%clk 0:01:28.5]} 34. Rh1 {[%clk
0:00:46.2]} 34... Bf4 {[%clk 0:01:24.3]} 35. Rxh5 {[%clk 0:00:46.4]} 35... Kc7
{[%clk 0:01:21.7]} 36. Rh7+ {[%clk 0:00:44]} 36... Kb6 {[%clk 0:01:22.2]} 37. c4
{[%clk 0:00:40.5]} 37... a5 {[%clk 0:01:21.9]} 38. bxa5+ {[%clk 0:00:39.1]}
38... Kxa5 {[%clk 0:01:22.8]} 39. cxb5 {[%clk 0:00:39.8]} 39... Kxb5 {[%clk
0:01:23.4]} 40. Rb7+ {[%clk 0:00:34.1]} 40... Ka6 {[%clk 0:01:22.9]} 41. Rb1
{[%clk 0:00:31.6]} 41... Ka7 {[%clk 0:01:23.5]} 42. Nf5 {[%clk 0:00:29.9]} 42...
d5 {[%clk 0:01:22.8]} 43. Ne7 {[%clk 0:00:28]} 43... dxe4+ {[%clk 0:01:22.4]}
44. fxe4 {[%clk 0:00:25.5]} 44... c5 {[%clk 0:01:19.9]} 45. Nc6+ {[%clk
0:00:24.2]} 45... Ka8 {[%clk 0:01:18.5]} 46. Bf3 {[%clk 0:00:22.2]} 46... Bc7
{[%clk 0:01:10.4]} 47. Bh1 {[%clk 0:00:19.4]} 47... g4 {[%clk 0:01:09.8]} 48. e5
{[%clk 0:00:19.4]} 48... g3 {[%clk 0:01:10]} 49. Kc4 {[%clk 0:00:17]} 49... Rf2
{[%clk 0:01:08]} 50. Rg1 {[%clk 0:00:14.6]} 50... Rh2 {[%clk 0:01:02.1]} 51. Bd5
{[%clk 0:00:14.1]} 51... Rc2+ {[%clk 0:01:00]} 52. Kb5 {[%clk 0:00:13.1]} 52...
Rd2 {[%clk 0:00:59.6]} 53. Ne7+ {[%clk 0:00:11.5]} 53... Ka7 {[%clk 0:00:58.3]}
54. Rxg3 {[%clk 0:00:11.6]} 54... Bxe5 {[%clk 0:00:58.4]} 55. Ra3+ {[%clk
0:00:11.7]} 55... Kb8 {[%clk 0:00:57.9]} 56. Nc6+ {[%clk 0:00:11.9]} 56... Kc7
{[%clk 0:00:58]} 57. Nxe5 {[%clk 0:00:12.3]} 57... Rxd5 {[%clk 0:00:58.2]} 58.
Ra7+ {[%clk 0:00:11.5]} 58... Kb8 {[%clk 0:00:55.8]} 59. Nc6+ {[%clk 0:00:11.8]}
59... Kc8 {[%clk 0:00:55.6]} 60. Kb6 {[%clk 0:00:12.4]} 60... Rd6 {[%clk
0:00:52.5]} 61. Rc7# {[%clk 0:00:12.4]} 1-0

[Event "Early-Titled-Tuesday-Blitz-June-18-2024"]
[Site "Chess.com"]
[Date "2024.06.18"]
[Round "5"]
[White "glucolisis04"]
[Black "lagedema"]
[Result "0-1"]
[WhiteElo "2286"]
[BlackElo "2435"]
[TimeControl "180+1"]
[EndTime "8:58:26 PDT"]
[Termination "lagedema won on time"]

1. d4 {[%clk 0:02:59.8]} 1... Nf6 {[%clk 0:02:58.1]} 2. c4 {[%clk 0:03:00.2]}
2... e6 {[%clk 0:02:58.2]} 3. Nc3 {[%clk 0:03:00.5]} 3... Bb4 {[%clk 0:02:58.1]}
4. e3 {[%clk 0:03:00.6]} 4... O-O {[%clk 0:02:51]} 5. Ne2 {[%clk 0:03:00.5]}
5... d6 {[%clk 0:02:42.5]} 6. a3 {[%clk 0:03:00.1]} 6... Bxc3+ {[%clk 0:02:43]}
7. Nxc3 {[%clk 0:03:00.7]} 7... b6 {[%clk 0:02:43.9]} 8. Be2 {[%clk 0:02:59.3]}
8... Bb7 {[%clk 0:02:42.9]} 9. O-O {[%clk 0:02:59.4]} 9... Nbd7 {[%clk
0:02:40.8]} 10. b4 {[%clk 0:02:56.4]} 10... a5 {[%clk 0:02:32.3]} 11. Bb2 {[%clk
0:02:56.5]} 11... axb4 {[%clk 0:02:27.8]} 12. axb4 {[%clk 0:02:57.4]} 12... Qe7
{[%clk 0:02:26.8]} 13. Bf3 {[%clk 0:02:54.1]} 13... Rxa1 {[%clk 0:02:18.3]} 14.
Bxa1 {[%clk 0:02:44.9]} 14... Bxf3 {[%clk 0:02:04.5]} 15. Qxf3 {[%clk
0:02:45.8]} 15... e5 {[%clk 0:02:02.1]} 16. Qc6 {[%clk 0:02:40]} 16... Nb8
{[%clk 0:01:58.7]} 17. Qb7 {[%clk 0:02:32]} 17... Re8 {[%clk 0:01:56.7]} 18. Nb5
{[%clk 0:02:23.8]} 18... c5 {[%clk 0:01:40.4]} 19. Qxe7 {[%clk 0:01:40.8]} 19...
Rxe7 {[%clk 0:01:41.3]} 20. Nxd6 {[%clk 0:01:09.8]} 20... exd4 {[%clk
0:01:40.8]} 21. exd4 {[%clk 0:01:08.9]} 21... cxb4 {[%clk 0:01:19.4]} 22. d5
{[%clk 0:01:06.9]} 22... Nfd7 {[%clk 0:01:16.5]} 23. Rb1 {[%clk 0:01:00.6]}
23... Na6 {[%clk 0:01:06.7]} 24. Bd4 {[%clk 0:00:50.2]} 24... Ndc5 {[%clk
0:01:07]} 25. h3 {[%clk 0:00:30.7]} 25... Kf8 {[%clk 0:00:57.2]} 26. Nf5 {[%clk
0:00:23]} 26... Re4 {[%clk 0:00:54.3]} 27. Bxg7+ {[%clk 0:00:22.8]} 27... Kg8
{[%clk 0:00:50.8]} 28. Bh6 {[%clk 0:00:18.4]} 28... Rxc4 {[%clk 0:00:46.4]} 29.
Re1 {[%clk 0:00:18]} 29... Nc7 {[%clk 0:00:43.8]} 30. d6 {[%clk 0:00:16.5]}
30... N7e6 {[%clk 0:00:42.9]} 31. Ne7+ {[%clk 0:00:15]} 31... Kh8 {[%clk
0:00:43]} 32. Nd5 {[%clk 0:00:11.7]} 32... Rd4 {[%clk 0:00:40.1]} 33. Nxb6
{[%clk 0:00:05.5]} 33... Rxd6 {[%clk 0:00:40.6]} 34. Nc4 {[%clk 0:00:05.6]}
34... Rd4 {[%clk 0:00:39.9]} 35. Ne5 {[%clk 0:00:06]} 35... f6 {[%clk
0:00:35.9]} 36. Ng4 {[%clk 0:00:03.5]} 36... f5 {[%clk 0:00:23.6]} 37. Nf6
{[%clk 0:00:03.5]} 37... b3 {[%clk 0:00:18.2]} 38. Ra1 {[%clk 0:00:04]} 38... b2
{[%clk 0:00:18.2]} 39. Ra8+ {[%clk 0:00:04.5]} 39... Nd8 {[%clk 0:00:16]} 40.
Ra7 {[%clk 0:00:02.7]} 40... Ncb7 {[%clk 0:00:14.9]} 41. Kh2 {[%clk 0:00:03.6]}
41... b1=Q {[%clk 0:00:14.7]} 42. Ra6 {[%clk 0:00:01.6]} 42... Qb5 {[%clk
0:00:14]} 43. Ra3 {[%clk 0:00:01.2]} 43... Qe5+ {[%clk 0:00:13.7]} 44. Rg3
{[%clk 0:00:01]} 44... Qxf6 {[%clk 0:00:12.8]} 0-1

[Event "Early-Titled-Tuesday-Blitz-June-18-2024"]
[Site "Chess.com"]
[Date "2024.06.18"]
[Round "5"]
[White "NikitaShnadrygin"]
[Black "aot317"]
[Result "0-1"]
[WhiteElo "2746"]
[BlackElo "2534"]
[TimeControl "180+1"]
[EndTime "8:58:28 PDT"]
[Termination "aot317 won by resignation"]

1. e4 {[%clk 0:03:00.9]} 1... c5 {[%clk 0:02:59.9]} 2. Nf3 {[%clk 0:03:00.1]}
2... e6 {[%clk 0:03:00.4]} 3. d4 {[%clk 0:03:00.4]} 3... cxd4 {[%clk 0:03:01.3]}
4. Nxd4 {[%clk 0:03:01.2]} 4... Nc6 {[%clk 0:03:02]} 5. Nc3 {[%clk 0:03:01.7]}
5... Qc7 {[%clk 0:03:02.7]} 6. Be2 {[%clk 0:03:01.1]} 6... a6 {[%clk 0:03:02.6]}
7. Be3 {[%clk 0:03:00.7]} 7... b5 {[%clk 0:02:59.5]} 8. a3 {[%clk 0:02:56.6]}
8... Bb7 {[%clk 0:02:57.3]} 9. O-O {[%clk 0:02:56]} 9... Nf6 {[%clk 0:02:57.4]}
10. f4 {[%clk 0:02:53.1]} 10... Na5 {[%clk 0:02:55.4]} 11. e5 {[%clk 0:02:49.1]}
11... Nd5 {[%clk 0:02:43.1]} 12. Nxd5 {[%clk 0:02:49]} 12... Bxd5 {[%clk
0:02:43.8]} 13. b3 {[%clk 0:02:37.2]} 13... Qc3 {[%clk 0:02:37.9]} 14. Bf2
{[%clk 0:02:24.5]} 14... Rc8 {[%clk 0:02:33.7]} 15. Kh1 {[%clk 0:01:56.3]} 15...
Nc6 {[%clk 0:02:19.3]} 16. Nxc6 {[%clk 0:01:46.4]} 16... Qxc6 {[%clk 0:02:17.3]}
17. Bf3 {[%clk 0:01:36.7]} 17... Bxf3 {[%clk 0:02:16.1]} 18. gxf3 {[%clk
0:01:29.7]} 18... Qxc2 {[%clk 0:02:16.3]} 19. Qxc2 {[%clk 0:01:26.7]} 19... Rxc2
{[%clk 0:02:17.2]} 20. Rac1 {[%clk 0:01:27.2]} 20... Rc6 {[%clk 0:01:44.7]} 21.
a4 {[%clk 0:01:16.5]} 21... Ba3 {[%clk 0:01:07.8]} 22. Rxc6 {[%clk 0:01:14.3]}
22... dxc6 {[%clk 0:01:07.6]} 23. axb5 {[%clk 0:01:13.9]} 23... axb5 {[%clk
0:01:05]} 24. Ra1 {[%clk 0:01:14.5]} 24... b4 {[%clk 0:01:05.2]} 25. Rd1 {[%clk
0:00:58.1]} 25... O-O {[%clk 0:00:56]} 26. Bc5 {[%clk 0:00:53.9]} 26... Rc8
{[%clk 0:00:54.9]} 27. Rd7 {[%clk 0:00:49.2]} 27... Bc1 {[%clk 0:00:53.5]} 28.
f5 {[%clk 0:00:48.9]} 28... exf5 {[%clk 0:00:52.3]} 29. Bxb4 {[%clk 0:00:47.4]}
29... h5 {[%clk 0:00:30.2]} 30. Bd6 {[%clk 0:00:36.5]} 30... c5 {[%clk
0:00:24.9]} 31. Bc7 {[%clk 0:00:16.2]} 31... Bf4 {[%clk 0:00:20.9]} 32. Kg2
{[%clk 0:00:09.3]} 32... f6 {[%clk 0:00:19.5]} 33. Rd8+ {[%clk 0:00:02.6]} 33...
Rxd8 {[%clk 0:00:19.2]} 34. Bxd8 {[%clk 0:00:03.5]} 34... fxe5 {[%clk
0:00:15.9]} 35. Be7 {[%clk 0:00:04.1]} 35... Be3 {[%clk 0:00:15.6]} 36. Bd6
{[%clk 0:00:04.7]} 36... Bd4 {[%clk 0:00:15.7]} 37. h4 {[%clk 0:00:05.1]} 37...
Kf7 {[%clk 0:00:15.4]} 38. Kg3 {[%clk 0:00:05]} 38... g6 {[%clk 0:00:15.4]} 39.
Bc7 {[%clk 0:00:04.6]} 39... Ke6 {[%clk 0:00:15.1]} 40. f4 {[%clk 0:00:05.2]}
40... e4 {[%clk 0:00:15.1]} 41. Kg2 {[%clk 0:00:05.8]} 41... Kd5 {[%clk
0:00:15.2]} 42. Kg3 {[%clk 0:00:06]} 42... Be3 {[%clk 0:00:13.5]} 43. Be5 {[%clk
0:00:05.2]} 43... Kc6 {[%clk 0:00:13.5]} 44. Bc3 {[%clk 0:00:04.3]} 44... Kb5
{[%clk 0:00:13.4]} 45. Be1 {[%clk 0:00:05]} 45... Bc1 {[%clk 0:00:12.4]} 46. Bc3
{[%clk 0:00:04.5]} 46... Ba3 {[%clk 0:00:12.4]} 47. Be1 {[%clk 0:00:04.6]} 47...
Bb4 {[%clk 0:00:12.6]} 48. Bf2 {[%clk 0:00:04.3]} 48... Bd2 {[%clk 0:00:12.2]}
0-1